[Event "FIDE WY-U16 Olympiad 2022"]
[Site "Nakhchivan"]
[Date "2022.10.04"]
[Round "3.8"]
[White "Khuslen, Erdenebayar"]
[Black "Nasibova, Narmin"]
[Result "1-0"]
[ECO "D43"]
[WhiteElo "1590"]
[BlackElo "1504"]
[Annotator "NA RC COMBH"]
[PlyCount "95"]
[EventDate "2022.10.02"]
[EventType "team-tourn"]
[EventCountry "AZE"]
[SourceTitle "playchess.com"]
[Source "ChessBase"]
[SourceQuality "1"]
[WhiteTeam "Mongolia"]
[BlackTeam "Azerbaijan"]
[WhiteTeamCountry "MGL"]
[BlackTeamCountry "AZE"]
[TimeControl "40/5400+30:1800+30"]

1. d4 {[%emt 0:00:04]} d5 {[%emt 0:00:29]} 2. c4 {[%emt 0:00:09]} c6 {[%emt 0:00:34]} 3. Nc3 {[%emt 0:01:00]} Nf6 {[%emt 0:00:36]} 4. Nf3 {[%emt 0:00:20]} e6 {[%emt 0:08:02]} 5. cxd5 {[%emt 0:02:22]} exd5 {[%emt 0:00:49]} 6. Bg5 {[%emt 0:01:01]} Bb4 {[%emt 0:20:03]} 7. Qc2 {[%emt 0:06:48]} Nbd7 {[%emt 0:03:03]} 8. e3 {[%emt 0:01:52]} Qa5 {[%emt 0:03:59]} 9. Bd3 {[%emt 0:03:13]} O-O {[%emt 0:01:29]} 10. O-O {[%emt 0:00:27]} Re8 {[%emt 0:02:01]} 11. Bh4 {[%emt 0:10:25]} Bxc3 {[%emt 0:06:10]} 12. bxc3 {[%emt 0:00:38]} Ne4 {[%emt 0:02:03]} 13. Ng5 {[%emt 0:08:15]} Nxg5 {[%emt 0:04:31]} 14. Bxg5 {[%emt 0:00:08]} h6 {[%emt 0:11:53]} 15. Bh4 {[%emt 0:00:08]} g5 {[%emt 0:05:35]} 16. Bg3 {[%emt 0:04:11]} Nf6 {[%emt 0:05:55]} 17. Be5 {[%emt 0:04:45]} Ng4 {[%emt 0:01:57]} 18. Bh7+ {[%emt 0:00:16]} Kf8 {[%emt 0:00:15]} 19. Bd6+ {[%emt 0:00:05]} Kg7 {[%emt 0:00:31]} 20. Bf5 {[%emt 0:00:24]} Qd8 {[%emt 0:01:27]} 21. Bxc8 {[%emt 0:04:01]} Rxc8 {[%emt 0:01:52]} 22. Bg3 {[%emt 0:00:16]} Re6 {[%emt 0:04:25]} 23. Qf5 {[%emt 0:00:58]} Nf6 {[%emt 0:00:53]} 24. Be5 {[%emt 0:00:44]} Kg8 {[%emt 0:06:33]} 25. f4 {[%emt 0:01:24]} g4 {[%emt 0:01:11]} 26. Bxf6 {[%emt 0:00:11]} Rxf6 {[%emt 0:00:45]} 27. Qxg4+ {[%emt 0:00:05]} Rg6 {[%emt 0:00:12]} 28. Qh5 Qf8 {[%emt 0:01:21]} 29. Rab1 {[%emt 0:03:52]} b6 {[%emt 0:00:29]} 30. Rf3 {[%emt 0:03:09]} Qg7 {[%emt 0:01:23]} 31. Rb2 {[%emt 0:01:07]} Kh7 {[%emt 0:00:58]} 32. Rbf2 {[%emt 0:04:25]} Rg8 {[%emt 0:00:45]} 33. Qh3 {[%emt 0:02:09]} Rg4 {[%emt 0:03:01]} 34. f5 {[%emt 0:02:21]} Qf6 {[%emt 0:01:29]} 35. Rf4 {[%emt 0:00:10]} R4g5 {[%emt 0:00:46]} 36. e4 {[%emt 0:02:51]} dxe4 {[%emt 0:00:29]} 37. Rxe4 {[%emt 0:00:06]} Qg7 {[%emt 0:00:33]} 38. Qf3 {[%emt 0:03:11]} c5 {[%emt 0:00:28]} 39. d5 {[%emt 0:00:49]} Qf6 {[%emt 0:00:30]} 40. Re1 {[%emt 0:00:52]} Rg4 {[%emt 0:00:29]} 41. Qe3 {[%emt 0:38:23]} Qh4 {[%emt 0:21:55]} 42. Qe7 {[%emt 0:00:00]} Qh5 {[%emt 0:02:30]} 43. d6 {[%emt 0:00:00]} Rh4 {[%emt 0:01:46]} 44. Qe5 {[%emt 0:00:00]} Rh3 {[%emt 0:05:17]} 45. Rd2 {[%emt 0:00:00]} Qh4 {[%emt 0:00:54]} 46. f6 {[%emt 0:00:00]} Kh8 {[%emt 0:00:38]} 47. Re4 {[%emt 0:00:00]} Re3 {[%emt 0:00:33]} 48. Rxh4 {[%emt 0:00:00]} 1-0

[Event "FIDE WY-U16 Olympiad 2022"]
[Site "Nakhchivan"]
[Date "2022.10.04"]
[Round "3.9"]
[White "Hidalgo Diaz, Daniel"]
[Black "Samadov, Read"]
[Result "0-1"]
[ECO "D02"]
[WhiteElo "2315"]
[BlackElo "2455"]
[Annotator "TA"]
[PlyCount "116"]
[EventDate "2022.10.02"]
[EventType "team-tourn"]
[EventCountry "AZE"]
[SourceTitle "playchess.com"]
[Source "ChessBase"]
[SourceQuality "1"]
[WhiteTeam "Cuba"]
[BlackTeam "Azerbaijan"]
[WhiteTeamCountry "CUB"]
[BlackTeamCountry "AZE"]
[TimeControl "40/5400+30:1800+30"]

{[%evp 11,116,22,10,20,20,0,0,0,6,0,25,18,18,21,21,8,34,10,8,0,0,0,0,0,0,0,0,0,0,0,0,-18,-15,-15,-15,-43,-38,-120,-106,-108,-97,-128,-123,-131,-112,-268,-118,-131,-138,-143,-98,-102,-104,-104,-101,-116,-120,-100,-93,-127,-127,-169,-168,-162,0,-127,-127,-118,-16,-16,-16,-77,-78,-81,-85,-86,-86,-86,-86,-435,-497,-516,-233,-233,-233,-233,-233,-233,-233,-233,-233,-233,-159,-185,-494,-483,-91,-1152,-1177,-1237,-526,-983,-1073,-1425,-1341,-1058,-878]} 1. d4 {[%emt 0:00:02]} Nf6 {[%emt 0:00:08]} 2. Nf3 {[%emt 0:00:07]} d5 {[%emt 0:00:18]} 3. Bf4 {[%emt 0:00:19]} c5 {[%emt 0:01:05]} 4. e3 {[%emt 0:00:09]} Nc6 {[%emt 0:00:31]} 5. Nbd2 {[%emt 0:00:11]} Bg4 {[%emt 0:01:36]} 6. c3 {[%emt 0:00:13]} e6 {[%emt 0:00:54]} 7. Qb3 {[%emt 0:01:40] 7.Qb3 scores better than 7.Qa4. D02: 1 d4 d5 2 Nf3 sidelines, including 2...Nf6 3 g3 and 2...Nf6 3 Bf4.} Qc8 {[%emt 0:01:05]} 8. Bb5 {[%emt 0:01:16]} Nd7 {[%emt 0:09:24]} 9. O-O {[%emt 0:02:54] The position is equal.} Be7 {[%emt 0:02:11] [#]} 10. c4 $146 {[%emt 0:03:59]} ({Predecessor:} 10. h3 Bf5 11. c4 a6 12. Bxc6 bxc6 13. Rac1 O-O 14. Rfe1 Ra7 15. Qc3 Qb7 16. a3 {1-0 (50) Pham,L (2366)-Ryjanova,J (2299) Chess.com INT 2020}) 10... dxc4 {[%emt 0:12:15]} 11. Qxc4 {[%emt 0:00:09]} a6 {[%emt 0:07:46]} 12. Bxc6 {[%emt 0:00:44]} Qxc6 {[%emt 0:00:18]} 13. dxc5 {[%emt 0:07:44]} Qxc5 {[%emt 0:07:17]} (13... Bxf3 $5 14. Nxf3 Nxc5 $11) 14. Rfc1 {[%emt 0:05:15]} Qxc4 {[%emt 0:06:12]} 15. Rxc4 {[%emt 0:00:02]} b5 {[%emt 0:02:10]} 16. Rc7 {[%emt 0:02:11]} f6 {[%emt 0:06:05]} 17. h3 {[%emt 0:07:05]} Bxf3 {[%emt 0:01:26]} 18. gxf3 {[%emt 0:01:39]} e5 {[%emt 0:00:51]} 19. Bh2 {[%emt 0:00:31]} Nc5 {[%emt 0:02:39]} 20. Nb3 {[%emt 0:08:35]} Ne6 {[%emt 0:05:32]} 21. Rc6 {[%emt 0:00:28]} Kf7 {[%emt 0:01:13]} 22. f4 {[%emt 0:00:48]} exf4 {[%emt 0:02:27]} 23. exf4 {[%emt 0:00:03]} Rhc8 {[%emt 0:01:31]} 24. Rac1 {[%emt 0:00:50]} (24. Rxc8 $1 $15 Rxc8 25. f5) 24... Rxc6 $17 {[%emt 0:00:46]} 25. Rxc6 {[%emt 0:00:03]} f5 {[%emt 0:00:52]} 26. Na5 {[%emt 0:04:55]} Ra7 {[%emt 0:06:42]} 27. Bg3 {[%emt 0:03:03]} h5 {[%emt 0:02:39]} 28. f3 $2 {[%emt 0:04:34]} (28. h4 $17 {keeps fighting.}) 28... Rc7 {[%emt 0:04:14]} (28... Rd7 $19 {has better winning chances.} 29. Rxa6 Rd1+ 30. Kg2 h4) 29. Rxc7 {[%emt 0:13:51]} Nxc7 {[%emt 0:00:04][%mdl 4096] Endgame KBN-KBN} 30. Nc6 {[%emt 0:00:14]} Nd5 {[%emt 0:01:31]} 31. Ne5+ {[%emt 0:02:39]} Ke6 {[%emt 0:00:25]} 32. Nd3 {[%emt 0:00:13]} Bd6 {[%emt 0:02:50]} 33. Kf2 {[%emt 0:01:30]} a5 {[%emt 0:04:59]} 34. Ke2 {[%emt 0:08:46]} a4 {[%emt 0:00:58]} 35. Kd2 {[%emt 0:14:35]} g5 {[%emt 0:01:45]} 36. Ke1 {[%emt 0:00:53]} Kd7 {[%emt 0:04:36]} (36... Nxf4 37. Nxf4+ gxf4 38. Bf2 $15) (36... gxf4 37. Bh4 $17) 37. Kd2 {[%emt 0:03:32]} Ke6 $2 {[%emt 0:00:28]} (37... gxf4 38. Bh4 $17) (37... Nxf4 38. Bxf4 gxf4 39. Kc3 $11) (37... h4 $19 38. Bh2 b4) 38. Ke2 {[%emt 0:00:55]} (38. Ke1 $1 $11 {was the only way to keep the balance.}) 38... Bc7 {[%emt 0:00:44] Black is more active.} ({And not} 38... Nxf4+ 39. Nxf4+ gxf4 40. Bf2 $15) 39. Kf2 {[%emt 0:01:13]} Nxf4 {[%emt 0:00:40]} (39... g4 $17 40. Kg1 gxh3) 40. Bxf4 $11 {[%emt 0:00:13]} gxf4 $17 {[%emt 0:00:35] KB-KN} 41. Ke2 {[%emt 0:30:38]} (41. Ne1 $11 {remains equal.}) 41... Kd5 {[%emt 0:03:18] White is on the road to losing.} 42. Kd2 {[%emt 0:00:00]} Kc4 {[%emt 0:01:56]} 43. Kc2 {[%emt 0:00:00]} Kd4 {[%emt 0:00:58] And now ...Ke3 would win.} 44. Kd2 {[%emt 0:00:00]} Bd6 {[%emt 0:01:06]} 45. a3 $2 {[%emt 0:00:00][%mdl 8192]} (45. Ke2 $17 {nothing else works.}) 45... Bc7 $19 {[%emt 0:03:14]} 46. Ke2 {[%emt 0:00:00]} Kc4 {[%emt 0:00:47]} (46... Bd8 $142 47. Nc1 (47. Nxf4 $2 Kc4 $19) 47... Kc4) 47. Kd2 {[%emt 0:00:00]} Kb3 {[%emt 0:01:18] Threatens to win with ...Kc4.} 48. Kc1 {[%emt 0:00:00]} Bb6 {[%emt 0:00:52]} 49. Kb1 {[%emt 0:00:00]} Be3 {[%emt 0:01:29]} 50. Ne5 {[%emt 0:00:00]} Bc5 {[%emt 0:06:38]} 51. Nd3 {[%emt 0:00:00]} Bd6 {[%emt 0:00:42]} 52. Nc1+ $2 {[%emt 0:00:00]} (52. Kc1 $17) 52... Kc4 {[%emt 0:00:07]} 53. Kc2 {[%emt 0:00:00]} Bc7 $2 {[%emt 0:01:23]} (53... b4 $19 {and Black stays clearly on top. White must now prevent ...b3+.} 54. axb4 Kd4) 54. Nd3 $2 {[%emt 0:00:00][%mdl 8192] [#]} (54. Ne2 $17) 54... Kd4 $1 {[%emt 0:00:53] ...Ke3 is the strong threat. Black is clearly winning.} 55. Kd2 {[%emt 0:00:00]} Ba5+ {[%emt 0:01:05]} 56. Ke2 {[%emt 0:00:00] [#]} Kc4 $1 {[%emt 0:01:09]} ({Weaker is} 56... Bc7 57. Nc1 $17) 57. Nxf4 {[%emt 0:00:00]} Kb3 {[%emt 0:00:14]} 58. Nd3 {[%emt 0:00:00]} Kc2 {[%emt 0:00:28] Weighted Error Value: White=0.47/Black=0.27 (precise)} 0-1

[Event "FIDE WY-U16 Olympiad 2022"]
[Site "Nakhchivan"]
[Date "2022.10.04"]
[Round "3.9"]
[White "Baranciuc, Alexandr"]
[Black "Seyid, Huseyn"]
[Result "0-1"]
[ECO "B25"]
[WhiteElo "2121"]
[BlackElo "2125"]
[Annotator "TA"]
[PlyCount "110"]
[EventDate "2022.10.02"]
[EventType "team-tourn"]
[EventCountry "AZE"]
[SourceTitle "playchess.com"]
[Source "ChessBase"]
[SourceQuality "1"]
[WhiteTeam "Moldova"]
[BlackTeam "Azerbaijan"]
[WhiteTeamCountry "MDA"]
[BlackTeamCountry "AZE"]
[TimeControl "40/5400+30:1800+30"]

{[%evp 11,110,1,0,-8,0,4,16,22,17,5,22,-13,3,-26,-19,-27,0,0,0,0,0,-11,0,-21,-26,-42,-38,-26,-22,-84,-98,-105,-16,-24,-23,-19,-22,-23,-18,-18,-33,-15,-14,-49,-54,-58,-39,-33,-50,-42,-38,-44,-22,-25,0,-31,-1,-12,-1,-14,0,0,0,0,0,-10,0,0,0,-52,-26,-116,-116,-117,-117,-111,-127,-211,-134,-101,-112,-237,-156,-335,-320,-307,-291,-607,-387,-735,-244,-257,-255,-261,-251,-227,-216,-1148,-1127,-29991,-29992]} 1. e4 {[%emt 0:00:17]} c5 {[%emt 0:00:35]} 2. Nc3 {[%emt 0:01:20]} Nc6 {[%emt 0:00:12]} 3. g3 {[%emt 0:00:26]} g6 {[%emt 0:00:09]} 4. Bg2 {[%emt 0:00:06]} Bg7 {[%emt 0:00:05]} 5. d3 {[%emt 0:00:15]} d6 {[%emt 0:00:16]} 6. f4 {[%emt 0:00:23]} Rb8 {[%emt 0:01:21]} 7. a4 {[%emt 0:01:35] B25: Closed Sicilian: 3 g3, lines without early Be3.} a6 {[%emt 0:00:52]} 8. Nf3 {[%emt 0:01:23]} b5 {[%emt 0:01:46]} 9. axb5 {[%emt 0:00:49] The position is equal.} axb5 {[%emt 0:00:04]} 10. O-O {[%emt 0:00:55][%cal Oe4e5]} b4 {[%emt 0:00:21]} 11. Ne2 {[%emt 0:01:57]} e6 {[%emt 0:07:22]} 12. Kh1 {[%emt 0:29:00]} Nge7 {[%emt 0:00:30]} 13. d4 {[%emt 0:01:01]} cxd4 {[%emt 0:02:25]} 14. Nfxd4 {[%emt 0:00:15]} Nxd4 {[%emt 0:01:50]} 15. Nxd4 {[%emt 0:00:02][%cal Of4f5] Strongly threatening f5!} O-O $1 {[%emt 0:02:58] [#]} 16. Qd3 $146 {[%emt 0:06:50]} ({Predecessor:} 16. Be3 Qd7 17. Qd2 Bb7 18. Ra5 f5 19. exf5 Nxf5 20. Nxf5 Rxf5 21. Rxf5 gxf5 22. Bd4 Bxg2+ 23. Kxg2 Qc6+ 24. Kh3 Qc4 25. Rd1 Bxd4 26. Qxd4 Qxd4 27. Rxd4 Rb6 {½-½ (27) Welz,P (1999)-Stark,I (2148) Germany 2017}) 16... Qd7 {[%emt 0:14:26]} 17. Rd1 {[%emt 0:13:11]} Rd8 {[%emt 0:02:33]} 18. Ra2 {[%emt 0:11:21]} Bb7 {[%emt 0:10:43]} 19. Be3 {[%emt 0:01:28]} Qc8 {[%emt 0:19:06]} 20. b3 {[%emt 0:13:58]} (20. c4 $11 {keeps the balance.}) 20... e5 $1 $17 {[%emt 0:08:49]} 21. Nb5 {[%emt 0:05:20]} Qc6 {[%emt 0:06:51]} (21... d5 $1 $17 {[%cal Rd5e4] aiming for ...dxe4.} 22. Bb6 (22. exd5 $2 Rxd5 23. Qf1 Rxd1 $19) 22... Rf8 23. exd5 Bxd5 $1 24. Bxd5 Rxb6) 22. fxe5 {[%emt 0:01:21]} ({Avoid the trap} 22. Nxd6 $2 Nf5 $1 {[%mdl 512]} 23. Ra6 Bxa6 $19) 22... Bxe5 {[%emt 0:00:49] Threatens to win with ...d5.} 23. Nd4 {[%emt 0:00:12]} Qe8 {[%emt 0:00:52]} 24. Nf3 {[%emt 0:02:35]} Bg7 {[%emt 0:01:35]} 25. Bd4 {[%emt 0:00:27]} d5 {[%emt 0:01:58]} 26. e5 {[%emt 0:01:10]} Nf5 {[%emt 0:00:30]} 27. g4 {[%emt 0:02:17]} Nxd4 {[%emt 0:00:18]} 28. Qxd4 {[%emt 0:00:01]} Qb5 {[%emt 0:02:57]} 29. Bf1 {[%emt 0:00:33]} Qc6 {[%emt 0:00:18]} 30. g5 {[%emt 0:01:40]} Re8 {[%emt 0:00:32]} 31. Bd3 {[%emt 0:00:36]} Qc7 {[%emt 0:03:16][%cal Rg7e5]} 32. Re1 {[%emt 0:00:51]} Bf8 {[%emt 0:01:42]} 33. Raa1 {[%emt 0:01:40]} Re6 {[%emt 0:00:34]} 34. Re2 {[%emt 0:00:32]} Rbe8 {[%emt 0:01:50]} 35. Rae1 {[%emt 0:00:00]} Bg7 {[%emt 0:00:37]} 36. Kg2 {[%emt 0:00:48]} ({Much weaker is} 36. Bb5 R8e7 $15) 36... Qc3 {[%emt 0:01:40]} 37. Qxc3 {[%emt 0:01:18]} bxc3 {[%emt 0:00:01]} 38. Kf2 {[%emt 0:00:01]} Bf8 {[%emt 0:01:39]} 39. Kg3 {[%emt 0:00:18]} Bc5 {[%emt 0:00:23]} 40. Kf4 {[%emt 0:00:20]} ({White should play} 40. h4 $11) 40... Ra8 {[%emt 0:00:28]} 41. h4 {[%emt 0:04:47]} (41. Kg3 $11) 41... Rb6 {[%emt 0:01:56] Black has more active pieces.} 42. h5 {[%emt 0:03:40]} Rb4+ {[%emt 0:01:23]} 43. Kg3 {[%emt 0:01:29]} gxh5 {[%emt 0:00:56]} 44. e6 {[%emt 0:06:54]} (44. Bf5 $17 {keeps fighting.}) 44... Rg4+ {[%emt 0:01:41]} 45. Kh3 {[%emt 0:00:28]} fxe6 {[%emt 0:00:51] ...Rf8 is the strong threat.} 46. Rxe6 {[%emt 0:00:13]} (46. Ne5 $17 {was worth a try.} Rxg5 47. Nd7) 46... Rf8 {[%emt 0:01:41]} 47. Re8 $2 {[%emt 0:02:29] This move loses the game for White.} (47. Ne5 $17 Rxg5 48. Nd7 Rf3+ 49. Kh4 Rg4+ 50. Kxh5) 47... Bd6 $19 {[%emt 0:09:43]} 48. Rxf8+ {[%emt 0:02:51]} Kxf8 {[%emt 0:01:03]} 49. Re6 $2 {[%emt 0:00:40]} (49. Ne5 Rxg5 50. Rf1+ Ke7 51. Rf7+ Ke6 52. Rxb7 Rxe5 53. Kg2) 49... Bc7 {[%emt 0:07:30]} 50. Rf6+ $2 {[%emt 0:06:14]} (50. g6 hxg6 51. Ne5 Bxe5 52. Rxe5) 50... Kg7 $2 {[%emt 0:01:51]} (50... Ke7 {White must now prevent ...d4.} 51. Bxh7 d4) 51. Rh6 {[%emt 0:00:38] [#]} Rg3+ $1 {[%emt 0:02:28]} 52. Kh4 {[%emt 0:00:02] [#]} Bc8 $1 {[%emt 0:01:09][%csl Gc8][%cal Rg3h3]} 53. Rxh7+ {[%emt 0:00:49]} Kg8 {[%emt 0:00:23][%csl Gc8][%cal Rg3h3]} 54. g6 $2 {[%emt 0:04:56]} (54. Kxh5 Bd6 55. Rh6 Rh3+ 56. Nh4) 54... Bf4 {[%emt 0:00:59][%csl Gc8][%cal Rg3h3]} 55. Kxh5 {[%emt 0:02:40]} Rxf3 {[%emt 0:00:22] Weighted Error Value: White=0.55/Black=0.26 (precise)} 0-1

[Event "FIDE WY-U16 Olympiad 2022"]
[Site "Nakhchivan"]
[Date "2022.10.04"]
[Round "3.10"]
[White "Suleymanli, Suleyman"]
[Black "Gonzalez Soler, Leduard Manuel"]
[Result "0-1"]
[ECO "A06"]
[WhiteElo "2304"]
[BlackElo "2251"]
[Annotator "TA"]
[PlyCount "92"]
[EventDate "2022.10.02"]
[EventType "team-tourn"]
[EventCountry "AZE"]
[SourceTitle "playchess.com"]
[Source "ChessBase"]
[SourceQuality "1"]
[WhiteTeam "Azerbaijan"]
[BlackTeam "Cuba"]
[WhiteTeamCountry "AZE"]
[BlackTeamCountry "CUB"]
[TimeControl "40/5400+30:1800+30"]

{[%evp 14,92,24,22,38,31,55,54,38,36,52,10,29,27,75,29,41,27,38,24,47,0,6,18,14,15,8,10,7,6,7,0,33,33,147,84,97,101,95,56,35,0,0,0,0,0,20,0,8,22,16,25,18,-685,-678,-664,-616,-638,-575,-1160,-2532,-2543,-1979,-6428,-5653,-6436,-5266,-3443,-3320,-2472,-2127,-1836,-6981,-29975,-10204,-29980,-29981,-29985,-29986,-29978,-6232]} 1. Nf3 {[%emt 0:00:02]} d5 {[%emt 0:00:13]} 2. g3 {[%emt 0:00:09]} Nf6 {[%emt 0:00:14]} 3. Bg2 {[%emt 0:00:10]} e6 {[%emt 0:00:06]} 4. O-O {[%emt 0:00:09]} Be7 {[%emt 0:00:04]} 5. c4 {[%emt 0:00:10][%cal Bc2c4,Bc4c5][%mdl 32]} O-O {[%emt 0:00:07]} 6. d4 {[%emt 0:00:08]} c6 {[%emt 0:00:16]} 7. Nc3 {[%emt 0:00:37]} b6 {[%emt 0:00:13]} 8. b3 {[%emt 0:00:49]} Ba6 {[%emt 0:00:55] E06: Closed Catalan: Early deviations.} 9. Nd2 {[%emt 0:02:46]} b5 {[%emt 0:00:28]} 10. c5 $1 {[%emt 0:30:28]} b4 {[%emt 0:00:41] White is slightly better.} 11. Na4 {[%emt 0:00:22]} Nbd7 {[%emt 0:13:21][%cal Bb8d7,Bd7f6,Bf6e4][%mdl 32] [#]} 12. f4 $146 {[%emt 0:10:41]} ({Predecessor:} 12. a3 bxa3 13. f4 Rb8 14. Re1 Ne8 15. Bxa3 Nc7 16. Nf3 Rb7 17. Qc2 f5 18. Bc1 {1-0 (49) Riazantsev,A (2639)-Asadli,V (2538) Moscow 2020}) 12... Ng4 {[%emt 0:29:21]} 13. Nf3 {[%emt 0:03:44]} h5 {[%emt 0:02:58]} (13... Bb5 $11 {was preferrable.}) 14. Bd2 {[%emt 0:02:04]} (14. a3 $16) 14... Ndf6 $11 {[%emt 0:14:40]} 15. Ne5 {[%emt 0:02:28]} ({Of course not} 15. Bxb4 Ne3 16. Qd2 Nxf1 17. Rxf1 Ne4 $15) ({Much worse is} 15. h3 Nh6 $11) 15... Bb5 {[%emt 0:03:23]} 16. Bf3 {[%emt 0:05:04]} ({Reject} 16. Bxb4 Ne3 17. Qd2 Nxf1 18. Rxf1 Qc8 $11) 16... Rb8 {[%emt 0:08:54]} 17. Nb2 {[%emt 0:05:23]} Nxe5 {[%emt 0:09:24]} 18. fxe5 {[%emt 0:00:24]} Ne4 {[%emt 0:00:08]} 19. Be3 {[%emt 0:09:02]} h4 {[%emt 0:09:12]} 20. Bxe4 {[%emt 0:02:07]} dxe4 {[%emt 0:00:06]} 21. Nc4 {[%emt 0:00:31]} Bxc4 {[%emt 0:01:33]} 22. bxc4 {[%emt 0:00:01]} f5 {[%emt 0:00:36]} 23. exf6 {[%emt 0:02:42]} gxf6 {[%emt 0:00:09]} (23... Bxf6 $14 24. gxh4 Rf7) 24. Bh6 {[%emt 0:01:24]} (24. gxh4 $142 {Strongly threatening Kh1.} f5 25. Kh1) 24... Rf7 $16 {[%emt 0:00:41][%cal Bf8f7,Bf7h7,Bh7h5][%mdl 32]} 25. e3 {[%emt 0:00:27] Qg4+ is the strong threat.} Rh7 {[%emt 0:01:42]} 26. Qg4+ {[%emt 0:00:17]} Kh8 {[%emt 0:00:05]} 27. Bf4 {[%emt 0:00:10]} Qg8 {[%emt 0:00:57]} 28. Qxg8+ {[%emt 0:02:25]} Rxg8 {[%emt 0:00:05]} 29. Kg2 {[%emt 0:03:00]} Rh5 {[%emt 0:02:54] [#] Threatens to win with ...e5.} 30. Bc7 {[%emt 0:05:07]} e5 {[%emt 0:01:32]} 31. dxe5 {[%emt 0:01:32]} fxe5 {[%emt 0:00:07]} 32. Bd6 {[%emt 0:01:31]} Bd8 {[%emt 0:00:25]} 33. Rf8 $2 {[%emt 0:05:09][%mdl 8192] Now White is beyond hope.} (33. a3 $11 b3 34. Rab1) 33... Rxf8 {[%emt 0:00:52]} 34. Bxf8 $19 {[%emt 0:00:02][%mdl 4096] Endgame KRB-KRB} h3+ {[%emt 0:00:23]} 35. Kg1 {[%emt 0:00:33]} Rf5 {[%emt 0:00:17]} 36. Rf1 {[%emt 0:02:20]} Rxf1+ {[%emt 0:00:10]} 37. Kxf1 {[%emt 0:00:01] KB-KB} a5 {[%emt 0:01:06][%cal Ba7a5,Ba5a4][%mdl 32]} 38. Bd6 {[%emt 0:00:42]} Kg7 {[%emt 0:00:36]} 39. Ke2 {[%emt 0:04:43]} a4 {[%emt 0:00:21]} 40. Kd2 {[%emt 0:00:22]} Kf6 {[%emt 0:00:35] [#] Hoping for ...Kf5.} 41. Bf8 {[%emt 0:30:38]} Kf5 {[%emt 0:30:24]} 42. Bg7 {[%emt 0:00:33]} Be7 {[%emt 0:00:37]} 43. g4+ {[%emt 0:00:30]} Kxg4 {[%emt 0:00:07] ( -> ...Kf3)} 44. Bxe5 {[%emt 0:00:02]} Kf3 {[%emt 0:00:42] Black mates.} 45. Bd6 {[%emt 0:00:49]} Bg5 {[%emt 0:00:17]} 46. Bc7 {[%emt 0:00:34]} Bxe3+ {[%emt 0:00:14] Weighted Error Value: White=0.83/Black=0.29 (precise)} 0-1